{"text_format":"2","workbook":"xlsx","n_sheets":1,"sheets":["Sheet1"],"not_rendered":{"charts":0,"images":0,"macros":0,"external_links":0,"defined_names":2,"comments":0,"pivot_tables":0},"unopened":[],"bounds":{"document_bytes":16777216,"sheet_cells":100000,"run_cost":"one","rows_first":2000,"rows_last":500,"rows_between":2000,"halvings":0,"cell_chars":16384,"cell_head_chars":4096},"cells_cut":0,"cells_raw":0,"read":"whole","date_system":"1900"}

{"sheet":"Sheet1","index":0,"n_rows":49,"n_cols":18,"rows_kept":49,"cut":false,"hidden":false,"merged":[[45,0,45,16],[46,0,46,16],[47,0,47,16],[48,0,48,16],[42,0,42,16],[43,0,43,16],[44,0,44,16],[0,17,1,17],[0,2,1,2],[0,9,1,9],[0,16,1,16],[0,11,0,13],[0,6,1,6],[0,8,1,8],[0,7,1,7],[0,10,1,10],[0,14,1,14],[0,15,1,15],[0,0,1,0],[0,1,1,1],[0,3,1,3],[0,4,1,4],[0,5,1,5]]}
["DIPARTIMENTO EROGANTE","CORSO DI STUDIO","TIPOLOGIA DEL CORSO","CURRICULUM","ANNO","SEMESTRE","MODULO DI INSEGNAMENTO (UD)","UD_SSD","PARTIZIONE","TAF","UD_CFU","TIP. DIDATTICA (ORE)",null,null,"TOTALE ORE DOCENTE","IMPORTO ORARIO LORDO AL NETTO DEGLI ONERI RIFLESSI","LORDO BENEFICIARIO AL NETTO DEGLI ONERI RIFLESSI","INSEGNAMENTI PER I QUALI E' NECESARIO COMPILARE IL \"MODELLO F\", VEDASI BANDO E LEGENDA IN CALCE"]
[{"$nulls":11},"LEZ","ESE\nTIR","LAB"]
["DIPARTIMENTO DI SCIENZE DELLA TERRA E GEOAMBIENTALI","CONSERVAZIONE E RESTAURO DEI BENI CULTURALI","CU5","Comune",1,null,"STORIA E TECNICHE DI RESTAURO I – MATERIALI CERAMICI",null,null,null,9,225,0,0,225,25,{"$f":"O3*25","v":5625},"COMPILARE \"MODELLO F\""]
["DIPARTIMENTO DI SCIENZE DELLA TERRA E GEOAMBIENTALI","CONSERVAZIONE E RESTAURO DEI BENI CULTURALI","CU5","Comune",1,null,"TIROCINIO I",null,null,null,6,0,150,0,150,25,{"$f":"O4*25","v":3750},"COMPILARE \"MODELLO F\""]
["DIPARTIMENTO DI SCIENZE DELLA TERRA E GEOAMBIENTALI","CONSERVAZIONE E RESTAURO DEI BENI CULTURALI","CU5","Comune",1,null,"STORIA E TECNICHE DI RESTAURO I – MATERIALI LAPIDEI",null,null,null,9,225,0,0,225,25,5625,"COMPILARE \"MODELLO F\""]
["DIPARTIMENTO DI SCIENZE DELLA TERRA E GEOAMBIENTALI","CONSERVAZIONE E RESTAURO DEI BENI CULTURALI","CU5","Comune",1,null,"TIROCINIO I",null,null,null,6,0,150,0,150,25,3750,"COMPILARE \"MODELLO F\""]
["DIPARTIMENTO DI SCIENZE DELLA TERRA E GEOAMBIENTALI","CONSERVAZIONE E RESTAURO DEI BENI CULTURALI","CU5","Comune",2,null,"STORIA E TECNICHE DI RESTAURO II – MATERIALI LAPIDEI",null,null,null,12,300,0,0,300,25,7500,"COMPILARE \"MODELLO F\""]
["DIPARTIMENTO DI SCIENZE DELLA TERRA E GEOAMBIENTALI","CONSERVAZIONE E RESTAURO DEI BENI CULTURALI","CU5","Comune",2,null,"TIROCINIO II",null,null,null,6,0,150,0,150,25,3750,"COMPILARE \"MODELLO F\""]
["DIPARTIMENTO DI SCIENZE DELLA TERRA E GEOAMBIENTALI","CONSERVAZIONE E RESTAURO DEI BENI CULTURALI","CU5","Comune",3,null,"STORIA E TECNICHE DI RESTAURO III - DIPINTI MURALI",null,null,null,12,300,0,0,300,25,7500,"COMPILARE \"MODELLO F\""]
["DIPARTIMENTO DI SCIENZE DELLA TERRA E GEOAMBIENTALI","CONSERVAZIONE E RESTAURO DEI BENI CULTURALI","CU5","Comune",3,null,"TIROCINIO III",null,null,null,6,0,150,0,150,25,3750,"COMPILARE \"MODELLO F\""]
["DIPARTIMENTO DI SCIENZE DELLA TERRA E GEOAMBIENTALI","CONSERVAZIONE E RESTAURO DEI BENI CULTURALI","CU5","Materiali Lapidei E Derivati; Superfici Decorate Dell'Architettura",4,null,"STORIA E TECNICHE DI RESTAURO IV – DIPINTI MURALI",null,null,null,12,300,0,0,300,25,7500,"COMPILARE \"MODELLO F\""]
["DIPARTIMENTO DI SCIENZE DELLA TERRA E GEOAMBIENTALI","CONSERVAZIONE E RESTAURO DEI BENI CULTURALI","CU5","Materiali Lapidei E Derivati; Superfici Decorate Dell'Architettura",4,null,"TIROCINIO IV",null,null,null,6,0,150,0,150,25,3750,"COMPILARE \"MODELLO F\""]
["DIPARTIMENTO DI SCIENZE DELLA TERRA E GEOAMBIENTALI","CONSERVAZIONE E RESTAURO DEI BENI CULTURALI","CU5","Materiali E Manufatti Ceramici E Vitrei; Materiali E Manufatti In Metallo E Leghe",5,null,"STORIA E TECNICHE DI RESTAURO V –MOSAICI",null,null,null,12,300,0,0,300,25,7500,"COMPILARE \"MODELLO F\""]
["DIPARTIMENTO DI SCIENZE DELLA TERRA E GEOAMBIENTALI","CONSERVAZIONE E RESTAURO DEI BENI CULTURALI","CU5","Materiali E Manufatti Ceramici E Vitrei; Materiali E Manufatti In Metallo E Leghe",5,null,"TIROCINIO V",null,null,null,9,0,225,0,225,25,5625,"COMPILARE \"MODELLO F\""]
["DIPARTIMENTO DI SCIENZE DELLA TERRA E GEOAMBIENTALI","SCIENZE GEOLOGICHE (D.M.270/04)","TRI","Comune",1,2,"INGLESE","L-LIN/12",null,"D",4,32,0,0,{"$f":"SUM(L15:N15)","v":32},25,800]
["DIPARTIMENTO DI CHIMICA","SCIENZE CHIMICHE (D.M.270/04)","MAG",null,2,1,"GESTIONE DEI RIFIUTI E SITI CONTAMINATI","CHIM/03",null,"C",5,40,0,0,{"$f":"SUM(L16:N16)","v":40},25,1000]
["DIPARTIMENTO DI CHIMICA","CHIMICA (D.M.270/04)","TRI","Comune",1,1,"LINGUA INGLESE","L-LIN/12",null,"E",3,0,45,0,{"$f":"SUM(L17:N17)","v":45},25,1125]
["DIPARTIMENTO DI CHIMICA","SCIENZE AMBIENTALI (D.M.270/04)","TRI","Comune",1,2,"LABORATORIO DI ABILITA' LINGUISTICHE (INGLESE)","L-LIN/12",null,"E",2,18,0,30,{"$f":"SUM(L18:N18)","v":48},25,1200]
["DIPARTIMENTO DI CHIMICA","SCIENZE CHIMICHE (D.M.270/04)","MAG","Comune",1,1,"COMPLEMENTI DI INGLESE","L-LIN/12",null,"F",2,0,30,0,{"$f":"SUM(L19:N19)","v":30},25,750]
["DIPARTIMENTO INTERATENEO DI FISICA","FISICA (D.M.270/04)","TRI","Comune",2,1,"INGLESE","L-LIN/12",null,"E+F",6,32,30,0,{"$f":"SUM(L20:N20)","v":62},25,1550]
["DIPARTIMENTO INTERATENEO DI FISICA","SCIENZA E TECNOLOGIE DEI MATERIALI (D.M.270/04)","TRI","Comune",1,2,"INGLESE","L-LIN/12",null,"E",3,null,45,0,{"$f":"SUM(L21:N21)","v":45},25,1125]
["DIPARTIMENTO DI INFORMATICA","COMPUTER SCIENCE  (D.M.270/04)","MAG","Multimediality And Innovation In Digital Communication",2,1,"DISTRIBUTED SYSTEMS","INF/01",null,"B",6,32,0,30,{"$f":"SUM(L22:N22)","v":62},25,1550]
["DIPARTIMENTO DI INFORMATICA","DATA SCIENCE (D.M.270/04)","MAG","Comune",1,1,"INGLESE PROFESSIONALE PER LA DATA SCIENCE","L-LIN/12",null,"F",3,24,0,0,{"$f":"SUM(L23:N23)","v":24},25,600]
["DIPARTIMENTO DI INFORMATICA","DATA SCIENCE (D.M.270/04)","MAG","Comune",2,1,"MODELLI ECONOMICI PER L'INNOVAZIONE GUIDATA DAI DATI ","SECS-P/08",null,"B",6,48,0,0,{"$f":"SUM(L24:N24)","v":48},25,1200]
["DIPARTIMENTO DI INFORMATICA","DATA SCIENCE (D.M.270/04)","MAG","Comune",1,1,"TRATTAMENTO DEI DATI SENSIBILI","IUS/01",null,"B",6,48,0,0,{"$f":"SUM(L25:N25)","v":48},25,1200]
["DIPARTIMENTO DI INFORMATICA","INFORMATICA E COMUNICAZIONE DIGITALE (D.M.270/04) - TARANTO","TRI","Comune",1,1,"PROGRAMMAZIONE","INF/01",null,"A",12,72,45,0,{"$f":"SUM(L26:N26)","v":117},25,2925]
["DIPARTIMENTO DI INFORMATICA","INFORMATICA E COMUNICAZIONE DIGITALE (D.M.270/04) - TARANTO","TRI","Comune",2,1,"STATISTICA MATEMATICA","MAT/06",null,"C",6,32,30,0,{"$f":"SUM(L27:N27)","v":62},25,1550]
["DIPARTIMENTO DI INFORMATICA","INFORMATICA E COMUNICAZIONE DIGITALE (D.M.270/04) - TARANTO","TRI","Comune",3,1,"RETI DI CALCOLATORI E COMUNICAZIONE DIGITALE","INF/01",null,"B",9,56,0,30,{"$f":"SUM(L28:N28)","v":86},25,2150]
["DIPARTIMENTO DI INFORMATICA","INFORMATICA E TECNOLOGIE PER LA PRODUZIONE DEL SOFTWARE (D.M.270/04)","TRI","Comune",1,1,"PROGRAMMAZIONE","ING-INF/05","AL","B",12,72,45,0,{"$f":"SUM(L29:N29)","v":117},25,2925]
["DIPARTIMENTO DI INFORMATICA","INFORMATICA E TECNOLOGIE PER LA PRODUZIONE DEL SOFTWARE (D.M.270/04)","TRI","Comune",3,1,"SVILUPPO DI MOBILE SOFTWARE","ING-INF/05",null,"B",8,48,0,30,{"$f":"SUM(L30:N30)","v":78},25,1950]
["DIPARTIMENTO DI INFORMATICA","INFORMATICA (D.M.270/04)","TRI","Comune",2,1,"FONDAMENTI DI FISICA","FIS/07","AL","C",6,32,30,0,{"$f":"SUM(L31:N31)","v":62},25,1550]
["DIPARTIMENTO DI INFORMATICA","SICUREZZA INFORMATICA","MAG","Comune",1,1,"CRITTOGRAFIA","INF/01",null,"C",6,32,30,0,{"$f":"SUM(L32:N32)","v":62},25,1550]
["DIPARTIMENTO DI INFORMATICA","SICUREZZA INFORMATICA","MAG","Comune",1,1,"LINGUA INGLESE","L-LIN/12",null,"F",3,24,0,0,{"$f":"SUM(L33:N33)","v":24},25,600]
["DIPARTIMENTO DI INFORMATICA","SICUREZZA INFORMATICA","MAG","Comune",1,1,"SICUREZZA NELLE RETI E NEI SISTEMI DISTRIBUITI","INF/01",null,"B",5,32,15,0,{"$f":"SUM(L34:N34)","v":47},25,1175]
["DIPARTIMENTO DI INFORMATICA","SICUREZZA INFORMATICA","MAG","Comune",2,1,"INFORMATICA FORENSE","INF/01-ING-INF/05",null,"D",6,48,0,0,{"$f":"SUM(L35:N35)","v":48},25,1200]
["DIPARTIMENTO DI INFORMATICA","SICUREZZA INFORMATICA","MAG","Comune",2,1,"METODI FORMALI PER LA SICUREZZA","INF/01",null,"B",5,32,0,15,{"$f":"SUM(L36:N36)","v":47},25,1175]
["DIPARTIMENTO DI INFORMATICA","SICUREZZA INFORMATICA","MAG","Comune",2,1,"PROGETTAZIONE DI SISTEMI SICURI","INF/01-ING-INF/05",null,"D",4,32,0,0,{"$f":"SUM(L37:N37)","v":32},25,800]
["DIPARTIMENTO DI INFORMATICA","SICUREZZA INFORMATICA","MAG","Comune",2,1,"SICUREZZA DELLE ARCHITETTURE ORIENTATE AI SERVIZI","ING-INF/05",null,"B",5,32,0,15,{"$f":"SUM(L38:N38)","v":47},25,1175]
["DIPARTIMENTO DI MATEMATICA","MATEMATICA (D.M.270/04)","MAG","Comune",1,2,"LINGUA INGLESE 2","L-LIN/12",null,"E",3,24,0,0,{"$f":"SUM(L39:N39)","v":24},25,600]
["DIPARTIMENTO DI MATEMATICA","MATEMATICA (D.M.270/04)","MAG","Orientamento In Matematica Applicata E Supporto Alla Finanza",2,2,"METODI ANALITICI IN FINANZA","MAT/05",null,"B",7,52,8,0,{"$f":"SUM(L40:N40)","v":60},25,1500]
["DIPARTIMENTO DI MATEMATICA","MATEMATICA (D.M.270/04)","TRI","Comune",1,2,"Lingua Inglese 1","L-LIN/12","A","E",3,24,0,0,{"$f":"SUM(L41:N41)","v":24},25,600]
["DIPARTIMENTO DI MATEMATICA","MATEMATICA (D.M.270/04)","TRI","Comune",1,2,"Lingua Inglese 1","L-LIN/12","B","E",3,24,0,0,{"$f":"SUM(L42:N42)","v":24},25,600]
["LEGENDA"]
["* Per l'insegnamento di Storia e tecniche del restauro I mat. Lapidei + tirocinio I (Mod.1) e (Mod. 2) verrà data priorità ai dipendenti MIBAC e a coloro che sono in possesso dei requisiti previsti dall'art. 3 p.1-2 del D.M. 87/2009 e cioè i docenti delle discipline tecniche di restauro teorico e di laboratorio o di cantiere scelti tra i RESTAURATORI DI BENI CULTURALI (art. 182 commi 1, 1-bis, 1-ter, 1-quater, 1-quinquies e art. 2 del Codice dei Beni Culturali) che siano in possesso di uno dei seguenti requisiti: \nA) aver svolto attività di DOCENZA PER ALMENO UN BIENNIO CONTINUATIVO presso le Scuole Alta Formazione e Studio ex. Art. 9 D.Lgs. 368/98, nonché presso le Università ed aver altresì maturato un'esperienza professionale di restauro, connotata dalla responsabilità diretta nella gestione tecnica degli interventi, di almeno quattro anni;  \nB) aver svolto attività di DOCENZA PER ALMENO UN TRIENNIO CONTINUATIVO presso corsi di restauro attivati dalle scuole di restauro regionali, ovvero presso corsi di restauro attivati dalle accademie di belle arti, della durata di almeno tre anni, ed aver altresì maturato un'esperienza professionale di restauro, connotata dalla responsabilità diretta nella gestione tecnica degli interventi, di almeno cinque anni; \nC) aver maturato un'esperienza professionale di restauro, connotata dalla responsabilità diretta degli interventi, di almeno dodici anni;\nD)/// \nE) essere docenti delle accademie di belle arti afferenti ai settori artistico-disciplinari ABPR 24,25,26,27,28 (DM 482/08); \nF) essere diplomati all'estero e trovarsi in una delle situazioni sopra citate, ed aver altresì ottenuto il riconoscimento dell'equipollenza del titolo, dell'istituzione e dell'attività professionale.\nObiettivi insegnamento: Litoidi naturali: generalità con particolare attenzione a quelli presenti sul territorio.Tecnologie per l'estrazione, trasporto, lavorazione in cava; materiali lapidei in opera: storia delle tecniche esecutive e costruttive, storia del restauro e della trasformazione dell'opera (riuso), cause e morfologie del degrado.  Materiali lapidei  per statuaria e decorazione. Esame e valutazione dello stato di conservazione generale del manufatto, delle tematiche di degrado in atto e relativa rappresentazione grafica. Disegno per il restauro. Metodi e materiali dei trattamenti conservativi e di restauro (pulitura, trattamenti biocidi, consolidamento, integrazione, protezione). Tecniche di indagine per controlli non distruttivi (es: tecniche di ripresa nel campo dell'infrarosso). Indagini Normal. Indagini diagnostiche distruttive.                                                                                                                                                                                                                                                                                               I partecipanti dovranno presentare la Dichiarazione di cui all'allegato F.\n"]
["** Per l'insegnamento di Storia e tecniche del restauro I ceramiche + tirocinio I  (Mod.1) e (Mod. 2) verrà data priorità ai dipendenti MIBAC e a coloro che sono in possesso dei requisiti previsti dall'art. 3 p.1-2 del D.M. 87/2009 e cioè i docenti delle discipline tecniche di restauro teorico e di laboratorio o di cantiere scelti tra i RESTAURATORI DI BENI CULTURALI (art. 182 commi 1, 1-bis, 1-ter, 1-quater, 1-quinquies e art. 2 del Codice dei Beni Culturali) che siano in possesso di uno dei seguenti requisiti: \nA) aver svolto attività di DOCENZA PER ALMENO UN BIENNIO CONTINUATIVO presso le Scuole Alta Formazione e Studio ex. Art. 9 D.Lgs. 368/98, nonché presso le Università ed aver altresì maturato un'esperienza professionale di restauro, connotata dalla responsabilità diretta nella gestione tecnica degli interventi, di almeno quattro anni;  \nB) aver svolto attività di DOCENZA PER ALMENO UN TRIENNIO CONTINUATIVO presso corsi di restauro attivati dalle scuole di restauro regionali, ovvero presso corsi di restauro attivati dalle accademie di belle arti, della durata di almeno tre anni, ed aver altresì maturato un'esperienza professionale di restauro, connotata dalla responsabilità diretta nella gestione tecnica degli interventi, di almeno cinque anni; \nC) aver maturato un'esperienza professionale di restauro, connotata dalla responsabilità diretta degli interventi, di almeno dodici anni;\nD)/// \nE) essere docenti delle accademie di belle arti afferenti ai settori artistico-disciplinari ABPR 24,25,26,27,28 (DM 482/08); \nF) essere diplomati all'estero e trovarsi in una delle situazioni sopra citate, ed aver altresì ottenuto il riconoscimento dell'equipollenza del titolo, dell'istituzione e dell'attività professionale.\nObiettivi insegnamento: Ceramica: il materiale costituente ed esempi di produzione. Tecniche produttive e problemi di realizzazione (formatura, essiccazione,  cottura). Tecniche produttive (fornaci, attrezzature ed utensili). Classificazione (terracotta, laterizi, refrattari, faenze, terraglie, gres, porcellane). Rivestimenti superficiali vetrosi e argillosi. Valutazione dello stato di conservazione: il degrado, cause, conseguenze (strettamente collegate con la diagnostica); conoscenza degli strumenti e dei materiali di cui si dispone per poterlo affrontare. Restauro, approccio generale e fasi di intervento: fase di pulitura. \nI partecipanti dovranno presentare la Dichiarazione di cui all'allegato F.\n\n\n"]
["*** Per l'insegnamento di Storia e tecniche del restauro II mat. Lapidei + tirocinio e II (Mod.1) e (Mod. 2) verrà data priorità ai dipendenti MIBAC e a coloro che sono in possesso dei requisiti previsti dall'art. 3 p.1-2 del D.M. 87/2009 e cioè i docenti delle discipline tecniche di restauro teorico e di laboratorio o di cantiere scelti tra i RESTAURATORI DI BENI CULTURALI (art. 182 commi 1, 1-bis, 1-ter, 1-quater, 1-quinquies e art. 2 del Codice dei Beni Culturali) che siano in possesso di uno dei seguenti requisiti: \nA) aver svolto attività di DOCENZA PER ALMENO UN BIENNIO CONTINUATIVO presso le Scuole Alta Formazione e Studio ex. Art. 9 D.Lgs. 368/98, nonché presso le Università ed aver altresì maturato un'esperienza professionale di restauro, connotata dalla responsabilità diretta nella gestione tecnica degli interventi, di almeno quattro anni;  \nB) aver svolto attività di DOCENZA PER ALMENO UN TRIENNIO CONTINUATIVO presso corsi di restauro attivati dalle scuole di restauro regionali, ovvero presso corsi di restauro attivati dalle accademie di belle arti, della durata di almeno tre anni, ed aver altresì maturato un'esperienza professionale di restauro, connotata dalla responsabilità diretta nella gestione tecnica degli interventi, di almeno cinque anni; \nC) aver maturato un'esperienza professionale di restauro, connotata dalla responsabilità diretta degli interventi, di almeno dodici anni;\nD)/// \nE) essere docenti delle accademie di belle arti afferenti ai settori artistico-disciplinari ABPR 24,25,26,27,28 (DM 482/08); \nF) essere diplomati all'estero e trovarsi in una delle situazioni sopra citate, ed aver altresì ottenuto il riconoscimento dell'equipollenza del titolo, dell'istituzione e dell'attività professionale.\nObiettivi insegnamento: Litoidi naturali: tecniche di esecuzione dei manufatti realizzati con litoidi naturali e artificiali e degli stucchi in opera; fenomenologia del deterioramento dei manufatti; metodi e materiali dei trattamenti conservativi e di restauro (pulitura, trattamenti biocidi, consolidamento, integrazione, protezione). Cenni su metodologie di intervento su sistemi monumentali integrati (fontane, facciate decorate). Tecnologie applicate ai materiali lapidei (es. sabbiature e micro-sabbiature, puliture laser, ultrasuoni). Illustrazione di casi studio e restauri esemplari; trattamento delle superfici. Progettazione e realizzazione di un intervento di restauro; stesura di relazione dimostrativa.                                                                                                                                             \nI partecipanti dovranno presentare la Dichiarazione di cui all'allegato F\n\n"]
["**** Per l'insegnamento di Storia e tecniche del restauro III Dip. Murali + tirocinio III (Mod.1) e (Mod. 2) verrà data priorità ai dipendenti MIBAC e a coloro che sono in possesso dei requisiti previsti dall'art. 3 p.1-2 del D.M. 87/2009 e cioè i docenti delle discipline tecniche di restauro teorico e di laboratorio o di cantiere scelti tra i RESTAURATORI DI BENI CULTURALI (art. 182 commi 1, 1-bis, 1-ter, 1-quater, 1-quinquies e art. 2 del Codice dei Beni Culturali) che siano in possesso di uno dei seguenti requisiti: \nA) aver svolto attività di DOCENZA PER ALMENO UN BIENNIO CONTINUATIVO presso le Scuole Alta Formazione e Studio ex. Art. 9 D.Lgs. 368/98, nonché presso le Università ed aver altresì maturato un'esperienza professionale di restauro, connotata dalla responsabilità diretta nella gestione tecnica degli interventi, di almeno quattro anni;  \nB) aver svolto attività di DOCENZA PER ALMENO UN TRIENNIO CONTINUATIVO presso corsi di restauro attivati dalle scuole di restauro regionali, ovvero presso corsi di restauro attivati dalle accademie di belle arti, della durata di almeno tre anni, ed aver altresì maturato un'esperienza professionale di restauro, connotata dalla responsabilità diretta nella gestione tecnica degli interventi, di almeno cinque anni; \nC) aver maturato un'esperienza professionale di restauro, connotata dalla responsabilità diretta degli interventi, di almeno dodici anni;\nD)/// \nE) essere docenti delle accademie di belle arti afferenti ai settori artistico-disciplinari ABPR 24,25,26,27,28 (DM 482/08); \nF) essere diplomati all'estero e trovarsi in una delle situazioni sopra citate, ed aver altresì ottenuto il riconoscimento dell'equipollenza del titolo, dell'istituzione e dell'attività professionale.\nObiettivi insegnamento: Tecniche di esecuzione di Affreschi, Tempere e Dipinti murali a secco; tecniche di indagine per controlli non distruttive e microdistruttive. Fenomenologia del deterioramento dei manufatti; metodi e materiali dei trattamenti conservativi e di restauro (pulitura, trattamenti biocidi, consolidamento, integrazione, protezione).                                                                                                  \nI partecipanti dovranno presentare la Dichiarazione di cui all'allegato F.\n"]
["***** Per l'insegnamento di Storia e tecniche del restauro IV dipinti murali + tirocinio IV  (Mod.1) e (Mod. 2) verrà data priorità ai dipendenti MIBAC e a coloro che sono in possesso dei requisiti previsti dall'art. 3 p.1-2 del D.M. 87/2009 e cioè i docenti delle discipline tecniche di restauro teorico e di laboratorio o di cantiere scelti tra i RESTAURATORI DI BENI CULTURALI (art. 182 commi 1, 1-bis, 1-ter, 1-quater, 1-quinquies e art. 2 del Codice dei Beni Culturali) che siano in possesso di uno dei seguenti requisiti: \nA) aver svolto attività di DOCENZA PER ALMENO UN BIENNIO CONTINUATIVO presso le Scuole Alta Formazione e Studio ex. Art. 9 D.Lgs. 368/98, nonché presso le Università ed aver altresì maturato un'esperienza professionale di restauro, connotata dalla responsabilità diretta nella gestione tecnica degli interventi, di almeno quattro anni;  \nB) aver svolto attività di DOCENZA PER ALMENO UN TRIENNIO CONTINUATIVO presso corsi di restauro attivati dalle scuole di restauro regionali, ovvero presso corsi di restauro attivati dalle accademie di belle arti, della durata di almeno tre anni, ed aver altresì maturato un'esperienza professionale di restauro, connotata dalla responsabilità diretta nella gestione tecnica degli interventi, di almeno cinque anni; \nC) aver maturato un'esperienza professionale di restauro, connotata dalla responsabilità diretta degli interventi, di almeno dodici anni;\nD)/// \nE) essere docenti delle accademie di belle arti afferenti ai settori artistico-disciplinari ABPR 24,25,26,27,28 (DM 482/08); \nF) essere diplomati all'estero e trovarsi in una delle situazioni sopra citate, ed aver altresì ottenuto il riconoscimento dell'equipollenza del titolo, dell'istituzione e dell'attività professionale.\nObiettivi insegnamento: Trattamento delle superfici dipinte dei monumenti storici ed archeologici. Tecniche di reintegrazione (tratteggio, selezione, astrazione cromatica); illustrazione dicasi studio e restauri esemplari.Progettazione e realizzazione di un intervento di restauro; stesura di  relazione dimostrativa.\nI partecipanti dovranno presentare la Dichiarazione di cui all'allegato F.\n\n\n"]
["****** Per l'insegnamento di Storia e tecniche del restauro V Mosaici + tirocinio V  (Mod.1) e (Mod. 2) verrà data priorità ai dipendenti MIBAC e a coloro che sono in possesso dei requisiti previsti dall'art. 3 p.1-2 del D.M. 87/2009 e cioè i docenti delle discipline tecniche di restauro teorico e di laboratorio o di cantiere scelti tra i RESTAURATORI DI BENI CULTURALI (art. 182 commi 1, 1-bis, 1-ter, 1-quater, 1-quinquies e art. 2 del Codice dei Beni Culturali) che siano in possesso di uno dei seguenti requisiti: \nA) aver svolto attività di DOCENZA PER ALMENO UN BIENNIO CONTINUATIVO presso le Scuole Alta Formazione e Studio ex. Art. 9 D.Lgs. 368/98, nonché presso le Università ed aver altresì maturato un'esperienza professionale di restauro, connotata dalla responsabilità diretta nella gestione tecnica degli interventi, di almeno quattro anni;  \nB) aver svolto attività di DOCENZA PER ALMENO UN TRIENNIO CONTINUATIVO presso corsi di restauro attivati dalle scuole di restauro regionali, ovvero presso corsi di restauro attivati dalle accademie di belle arti, della durata di almeno tre anni, ed aver altresì maturato un'esperienza professionale di restauro, connotata dalla responsabilità diretta nella gestione tecnica degli interventi, di almeno cinque anni; \nC) aver maturato un'esperienza professionale di restauro, connotata dalla responsabilità diretta degli interventi, di almeno dodici anni;\nD)/// \nE) essere docenti delle accademie di belle arti afferenti ai settori artistico-disciplinari ABPR 24,25,26,27,28 (DM 482/08); \nF) essere diplomati all'estero e trovarsi in una delle situazioni sopra citate, ed aver altresì ottenuto il riconoscimento dell'equipollenza del titolo, dell'istituzione e dell'attività professionale.\nObiettivi insegnamento:Tecniche di esecuzione dei manufatti;  fenomenologia del deterioramento dei manufatti;  metodi e materiali dei trattamenti conservativi e di restauro. Illustrazione di casi studio e restauri esemplari. Documentazione   fotografica.   Progettazione   e   realizzazione   di   un intervento di restauro; stesura di relazione dimostrativa.\nI partecipanti dovranno presentare la Dichiarazione di cui all'allegato F."]